fUSD/lending_fUSD_20240612
["ID","MTS","AMOUNT","RATE_DAILY","PERIOD"]
[329284505,1718215836453,-500.0,0.00025013,2]
[329284506,1718215836464,-154.34628642,0.00025036,2]
[329284507,1718215836475,-500.0,0.0002515,2]
[329284508,1718215836487,-232.45716845,0.0002517,2]
[329284509,1718215836498,-155.14906223,0.00025178,2]
[329284510,1718215836509,-500.0,0.00025287,2]
[329284511,1718215836520,-232.45716845,0.00025421,2]
[329284512,1718215836532,-500.0,0.00025424,2]
[329284513,1718215836543,-154.7981045,0.00025443,2]
[329284514,1718215836554,-153.44603741,0.00025451,2]
[329284515,1718215836565,-159.73165692,0.00025481,2]
[329284516,1718215836576,-2554.52847289,0.00025489,2]
[329284517,1718215836588,-9107.15496963,0.00025508,2]
[329284518,1718215836599,-500.0,0.00025561,2]
[329284519,1718215836616,-1755.29912507,0.00025565,2]
[329284520,1718215836627,-500.0,0.00025698,2]
[329284521,1718215836638,-154.28305795,0.00025734,2]
[329284522,1718215836649,-158.44410418,0.00025756,2]
[329284523,1718215836660,-154.06645658,0.00025777,2]
[329284524,1718215836672,-154.7981045,0.0002578,2]
[329284525,1718215836682,-232.45716845,0.00025789,2]
[329284526,1718215836693,-500.0,0.00025835,2]
[329284527,1718215836704,-500.0,0.00025972,2]
[329284528,1718215836717,-161.28706367,0.00026081,2]
[329284529,1718215836729,-158.4441042,0.00026089,2]
[329284530,1718215836741,-500.0,0.00026109,2]
[329284531,1718215836752,-2554.52847289,0.00026119,2]
[329284532,1718215836763,-9107.15496963,0.00026135,2]
[329284533,1718215836774,-232.45716845,0.00026173,2]
[329284534,1718215836785,-159.73165692,0.00026202,2]
[329284535,1718215836796,-315.82,0.00026205,2]
[329284536,1718215836807,-500.0,0.00026246,2]
[329284537,1718215836818,-1755.29912507,0.00026288,2]
[329284538,1718215836829,-2000.0,0.00026301,3]
[329284539,1718215836840,-154.28305795,0.00026305,2]
[329284540,1718215836854,-500.0,0.00026383,2]
[329284541,1718215836869,-232.45716845,0.00026426,2]
[329284542,1718215836888,-418.72,0.0002644,2]
[329284543,1718215836900,-159.83725638,0.00026466,2]
[329284544,1718215836911,-601.86813143,0.0002652,2]
[329284545,1718215836923,-400.0,0.00026552,2]
[329284546,1718215836933,-161.28706367,0.00026576,2]
[329284547,1718215836945,-232.45716845,0.00026586,2]
[329284548,1718215836956,-154.28305795,0.00026634,2]
[329284549,1718215836968,-232.45716845,0.00026656,2]
[329284550,1718215836979,-2554.52847289,0.00026749,2]
[329284551,1718215836990,-9107.15496963,0.00026763,2]
[329284552,1718215837002,-232.45716845,0.00026821,2]
[329284553,1718215837014,-232.45716845,0.00026838,2]
[329284554,1718215837025,-4872.65,0.00026867,2]
[329284555,1718215837036,-155.10438025,0.00026994,2]
[329284556,1718215837047,-757.34625938,0.00026998,2]
[329284557,1718215837062,-424.35038744,0.00026998,2]
[329284558,1718215837074,-1400.0,0.00027,2]
[329284559,1718215837086,-2845.742445,0.00027,2]
[329284560,1718215837099,-17804.38443806,0.00027,2]
[329284561,1718215837111,-1755.29912507,0.0002701,2]
[329284562,1718215837123,-600.0,0.00027049,2]
[329284563,1718215837138,-232.45716845,0.00027117,2]
[329284564,1718215837150,-2013.69130441,0.000272,2]
[329284565,1718215837162,-11735.0,0.000273,5]
[329284566,1718215837188,-152.0,0.00027311,3]
[329284567,1718215837200,-500.0,0.0002737,2]
[329284568,1718215837211,-2554.52847289,0.0002738,2]
[329284569,1718215837222,-9107.15496963,0.0002739,2]
[329284570,1718215837234,-150.0,0.00027397,2]
[329284571,1718215837245,-150.0,0.00027397,2]
[329284572,1718215837256,-1671.83,0.00027397,2]
[329284573,1718215837267,-182.38,0.00027397,2]
[329284574,1718215837278,-271.97,0.00027397,10]
[329284575,1718215837289,-226.64,0.00027397,10]
[329284576,1718215837301,-188.87,0.00027397,10]
[329284577,1718215837313,-184.0,0.000274,2]
[329284578,1718215837325,-389.05,0.000274,2]
[329284579,1718215837336,-389.05,0.000274,2]
[329284580,1718215837346,-154.28305795,0.0002742,2]
[329284581,1718215837356,-154.7981045,0.00027426,2]
[329284582,1718215837367,-154.7981045,0.00027456,2]
[329284583,1718215837378,-422.632,0.0002747,2]
[329284584,1718215837388,-276.387,0.0002747,2]
[329284585,1718215837398,-1978.0,0.0002747,2]
[329284586,1718215837408,-1065.0,0.0002747,2]
[329284587,1718215837419,-154.28305795,0.00027561,2]
[329284588,1718215837430,-158.95779898,0.00027572,2]
[329284589,1718215837440,-3440.3735,0.000276,2]
[329284590,1718215837451,-155.14906223,0.000276,2]
[329284591,1718215837462,-3000.0,0.000277,2]
[329284592,1718215837472,-500.0,0.000277,2]
[329284593,1718215837482,-232.45716845,0.00027724,2]
[329284594,1718215837493,-1755.29912507,0.00027733,2]
[329284595,1718215837505,-161.28706367,0.00027759,2]
[329284596,1718215837515,-266.2781261,0.000279,2]
[329284597,1718215837529,-155.10438025,0.00027958,2]
[329284598,1718215837542,-224.98486477,0.00028,2]
[329284599,1718215837554,-500.0,0.00028,2]
[329284600,1718215837569,-500.0,0.00028,2]
[329284601,1718215837580,-797.0,0.00028,2]
[329284602,1718215837597,-469.26225557,0.00028,2]
[329284603,1718215837615,-2554.52847289,0.0002801,2]
[329284604,1718215837630,-9107.15496963,0.00028018,2]
[329284605,1718215837644,-154.28305795,0.00028062,2]
[329284606,1718215837658,-154.7981045,0.00028108,2]
[329284607,1718215837671,-232.45716845,0.00028111,2]
[329284608,1718215837684,-150.0,0.00028118,2]
[329284609,1718215837697,-154.0664566,0.00028196,2]
[329284610,1718215837709,-5800.0,0.000282,2]
[329284611,1718215837723,-232.45716845,0.00028203,2]
[329284612,1718215837737,-161.28706367,0.00028217,2]
[329284613,1718215837752,-155.00128122,0.00028278,2]
[329284614,1718215837765,-150.20717072,0.00028348,2]
[329284615,1718215837777,-153.44603742,0.00028351,2]
[329284616,1718215837792,-1755.29912507,0.00028455,2]
[329284617,1718215837807,-232.45716845,0.00028458,2]
[329284618,1718215837820,-1294.59699274,0.00028498,2]
[329284619,1718215837835,-159.73165692,0.0002852,2]
[329284620,1718215837850,-152.0,0.0002859,4]
[329284621,1718215837866,-154.28305795,0.00028602,2]
[329284622,1718215837878,-161.28706367,0.00028602,2]
[329284623,1718215837890,-2554.52847289,0.0002864,2]
[329284624,1718215837903,-9107.15496963,0.00028645,2]
[329284625,1718215837917,-154.7981045,0.00028699,2]
[329284626,1718215837940,-418.72,0.00028704,2]
[329284627,1718215837955,-154.28305795,0.00028768,2]
[329284628,1718215837977,-500.0,0.0002877,15]
[329284629,1718215837994,-150.0,0.00028839,2]
[329284630,1718215838024,-232.45716845,0.00028883,2]
[329284631,1718215838042,-500.0,0.00028989,2]
[329284632,1718215838057,-500.0,0.00028989,2]
[329284633,1718215838081,-500.0,0.00028989,2]
[329284634,1718215838095,-621.82,0.00028989,2]
[329284635,1718215838114,-500.0,0.00028989,2]
[329284636,1718215838132,-500.0,0.00028989,2]
[329284637,1718215838151,-500.0,0.00028989,2]
[329284638,1718215838179,-500.0,0.00028989,2]
[329284639,1718215838194,-500.0,0.00028989,2]
[329284640,1718215838206,-500.0,0.00028989,2]
[329284641,1718215838221,-500.0,0.00028989,2]
[329284642,1718215838235,-500.0,0.00028989,2]
[329284643,1718215838268,-423.66245871,0.00028989,2]
[329284644,1718215838281,-500.0,0.00028989,2]
[329284645,1718215838296,-500.0,0.00028989,2]
[329284646,1718215838308,-500.0,0.00028989,2]
[329284647,1718215838319,-500.0,0.00028989,2]
[329284648,1718215838333,-492.69442466,0.00028989,2]
[329284649,1718215838345,-9263.18,0.00028989,2]
[329284650,1718215838357,-192.92222458,0.00028989,2]
[329284651,1718215838371,-500.0,0.00028999,2]
[329284652,1718215838392,-500.0,0.00028999,2]
[329284653,1718215838410,-500.0,0.00028999,2]
[329284654,1718215838422,-500.0,0.00028999,2]
[329284655,1718215838438,-215.14,0.00028999,2]
[329284656,1718215838455,-157.43,0.00028999,2]
[329284657,1718215838472,-500.0,0.00028999,2]
[329284658,1718215838484,-500.0,0.00028999,2]
[329284659,1718215838497,-500.0,0.00028999,2]
[329284660,1718215838517,-500.0,0.00028999,2]
[329284661,1718215838543,-500.0,0.00028999,2]
[329284662,1718215838556,-500.0,0.00028999,2]
[329284663,1718215838575,-500.0,0.00028999,2]
[329284664,1718215838592,-500.0,0.00028999,2]
[329284665,1718215838613,-500.0,0.00028999,2]
[329284666,1718215838630,-299.7669,0.00028999,2]
[329284667,1718215838649,-506.2,0.00028999,2]
[329284668,1718215838661,-500.0,0.00028999,2]
[329284669,1718215838676,-500.0,0.00028999,2]
[329284670,1718215838688,-500.0,0.00028999,2]
[329284671,1718215838703,-500.0,0.00028999,2]
[329284672,1718215838716,-500.0,0.00028999,2]
[329284673,1718215838729,-378.41592655,0.00028999,2]
[329284674,1718215838742,-500.0,0.00028999,2]
[329284675,1718215838755,-500.0,0.00028999,2]
[329284676,1718215838770,-500.0,0.00028999,2]
[329284677,1718215838781,-509.0376282,0.00028999,2]
[329284678,1718215838790,-507.21076286,0.00028999,2]
[329284679,1718215838802,-500.0,0.00028999,2]
[329284680,1718215838812,-500.0,0.00028999,2]
[329284681,1718215838823,-500.0,0.00028999,2]
[329284682,1718215838834,-637.0771954,0.00028999,2]
[329284683,1718215838845,-500.0,0.00028999,2]
[329284684,1718215838858,-500.0,0.00028999,2]
[329284686,1718215838874,-508.00616376,0.00028999,2]
[329284687,1718215838885,-500.0,0.00028999,2]
[329284688,1718215838895,-500.0,0.00028999,2]
[329284689,1718215838905,-506.99640169,0.00028999,2]
[329284690,1718215838916,-500.0,0.00028999,2]
[329284691,1718215838926,-508.98172607,0.00028999,2]
[329284692,1718215838937,-509.16282362,0.00028999,2]
[329284693,1718215838947,-500.0,0.00028999,2]
[329284694,1718215838959,-500.0,0.00028999,2]
[329284695,1718215838972,-500.0,0.00028999,2]
[329284696,1718215838984,-509.37177999,0.00028999,2]
[329284697,1718215838996,-500.0,0.00028999,2]
[329284698,1718215839007,-500.0,0.00028999,2]
[329284699,1718215839023,-500.0,0.00028999,2]
[329284700,1718215839041,-500.0,0.00028999,2]
[329284701,1718215839053,-363.70711612,0.00028999,2]
[329284702,1718215839064,-502.89697178,0.00028999,2]
[329284703,1718215839079,-500.0,0.00028999,2]
[329284704,1718215839090,-500.0,0.00028999,2]
[329284705,1718215839103,-500.0,0.00028999,2]
[329284706,1718215839114,-438.76,0.00028999,2]
[329284707,1718215839127,-500.0,0.00028999,2]
[329284708,1718215839139,-500.0,0.00028999,2]
[329284709,1718215839152,-606.07,0.00028999,2]
[329284710,1718215839182,-497.86624503,0.00028999,2]
[329284711,1718215839204,-375.68,0.00028999,2]
[329284712,1718215839237,-500.0,0.00028999,2]
[329284713,1718215839256,-508.98,0.00028999,2]
[329284714,1718215839275,-527.1089148,0.00028999,2]
[329284715,1718215839288,-500.0,0.00028999,2]
[329284716,1718215839307,-500.0,0.00028999,2]
[329284717,1718215839321,-1510.37,0.00028999,2]
[329284718,1718215839535,-500.0,0.00028999,2]
[329284719,1718215839548,-1450.0,0.00029,2]
[329284720,1718215839561,-2169.0,0.00029,2]
[329284721,1718215839573,-1489.8087426,0.00029,2]
[329284722,1718215839600,-750.22732642,0.00029,4]
[329284723,1718215839612,-4173.19345114,0.00029,2]
[329284724,1718215839628,-714.70400096,0.00029014,2]
[329284725,1718215839647,-632.10748382,0.00029016,5]
[329284726,1718215839671,-232.45716845,0.00029036,2]
[329284727,1718215839698,-500.0,0.00029043,15]
[329284728,1718215839712,-500.0,0.00029126,2]
[329284729,1718215839730,-628.63,0.00029126,2]
[329284730,1718215839749,-256.36,0.00029126,2]
[329284731,1718215839766,-500.0,0.00029126,2]
[329284732,1718215839797,-169.38732635,0.00029126,2]
[329284733,1718215839816,-323.62,0.00029126,2]
[329284734,1718215839830,-345.15,0.00029126,2]
[329284735,1718215839846,-500.0,0.00029126,2]
[329284736,1718215839862,-500.0,0.00029126,2]
[329284737,1718215839884,-500.0,0.00029126,2]
[329284738,1718215839898,-9263.18,0.00029126,2]
[329284739,1718215839912,-561.83708435,0.00029136,2]
[329284740,1718215839926,-500.0,0.00029136,2]
[329284741,1718215839948,-500.0,0.00029136,2]
[329284742,1718215839963,-500.0,0.00029136,2]
[329284743,1718215839989,-500.0,0.00029136,2]
[329284744,1718215840001,-251.91155075,0.00029136,2]
[329284745,1718215840016,-500.0,0.00029136,2]
[329284746,1718215840032,-183.6598415,0.00029136,2]
[329284747,1718215840046,-517.18457594,0.00029136,2]
[329284748,1718215840058,-1510.37,0.00029136,2]
[329284749,1718215840076,-1755.29912507,0.00029178,2]
[329284750,1718215840088,-154.34628642,0.00029209,2]
[329284751,1718215840104,-154.34628642,0.00029253,2]
[329284752,1718215840118,-159.73165692,0.00029261,2]
[329284753,1718215840130,-189.92070065,0.00029263,2]
[329284754,1718215840143,-500.0,0.00029263,2]
[329284755,1718215840155,-566.19,0.00029263,2]
[329284756,1718215840169,-500.0,0.00029263,2]
[329284757,1718215840195,-500.0,0.00029263,2]
[329284758,1718215840206,-9263.18,0.00029263,2]
[329284759,1718215840218,-2554.52847289,0.0002927,15]
[329284760,1718215840231,-9107.15496963,0.00029273,15]
[329284761,1718215840247,-500.0,0.00029273,2]
[329284762,1718215840261,-1510.37,0.00029273,2]
[329284763,1718215840274,-154.28305795,0.00029283,2]
[329284764,1718215840286,-159.73165697,0.00029302,2]
[329284765,1718215840299,-716.08,0.0002931,30]
[329284766,1718215840311,-500.0,0.00029317,15]
[329284767,1718215840331,-232.45716845,0.00029362,2]
[329284768,1718215840342,-156.81368119,0.00029398,4]
[329284769,1718215840353,-500.0,0.000294,2]
[329284770,1718215840366,-500.0,0.000294,2]
[329284771,1718215840377,-500.0,0.000294,2]
[329284772,1718215840388,-9263.18,0.000294,2]
[329284773,1718215840399,-1510.37,0.0002941,2]
[329284774,1718215840412,-770.0,0.00029413,2]
[329284775,1718215840422,-649.0,0.00029413,2]
[329284776,1718215840433,-500.0,0.00029456,2]
[329284777,1718215840444,-500.0,0.00029456,2]
[329284778,1718215840457,-500.0,0.00029456,2]
[329284779,1718215840467,-500.0,0.00029456,2]
[329284780,1718215840478,-500.0,0.00029456,2]
[329284781,1718215840488,-500.0,0.00029456,2]
[329284782,1718215840500,-228.48517653,0.000295,3]
[329284783,1718215840509,-400.0,0.00029502,2]
[329284784,1718215840527,-500.0,0.00029537,2]
[329284785,1718215840539,-500.0,0.00029537,2]
[329284786,1718215840549,-500.0,0.00029537,2]
[329284787,1718215840565,-9263.18,0.00029537,2]
[329284788,1718215840576,-1510.37,0.00029547,2]
[329284789,1718215840587,-150.0,0.0002956,2]
[329284790,1718215840599,-500.0,0.0002959,15]
[329284791,1718215840619,-161.63646884,0.00029595,2]
[329284792,1718215840634,-154.28305795,0.000296,2]
[329284793,1718215840646,-4872.65,0.00029607,2]
[329284794,1718215840658,-500.0,0.00029674,2]
[329284795,1718215840670,-500.0,0.00029674,2]
[329284796,1718215840684,-500.0,0.00029674,2]
[329284797,1718215840695,-9263.18,0.00029674,2]
[329284798,1718215840709,-1510.37,0.00029684,2]
[329284799,1718215840721,-770.0,0.00029716,2]
[329284800,1718215840738,-649.0,0.00029716,2]
[329284801,1718215840754,-160.38508069,0.00029741,2]
[329284802,1718215840769,-1000.0,0.00029759,30]
[329284803,1718215840782,-500.0,0.00029759,2]
[329284804,1718215840793,-1000.0,0.000298,2]
[329284805,1718215840804,-155.0,0.000298,2]
[329284806,1718215840816,-322.38393376,0.00029811,2]
[329284807,1718215840827,-163.21901707,0.00029811,2]
[329284808,1718215840838,-500.0,0.00029811,2]
[329284809,1718215840849,-9263.18,0.00029811,2]
[329284810,1718215840860,-217.88223365,0.00029815,2]
[329284811,1718215840871,-1510.37,0.00029821,2]
[329284812,1718215840882,-154.28305795,0.0002985,2]
[329284813,1718215840895,-800.0,0.00029863,7]
[329284814,1718215840908,-800.0,0.00029863,7]
[329284815,1718215840919,-800.0,0.00029863,7]
[329284816,1718215840930,-800.0,0.00029863,7]
[329284817,1718215840941,-800.0,0.00029863,7]
[329284818,1718215840952,-500.0,0.00029863,15]
[329284819,1718215840962,-152.0,0.00029869,5]
[329284820,1718215840972,-152.27,0.00029889,2]
[329284821,1718215840983,-306.95,0.0002989,2]
[329284822,1718215840995,-500.0,0.00029897,2]
[329284823,1718215841007,-500.0,0.00029897,10]
[329284824,1718215841018,-500.0,0.00029897,2]
[329284825,1718215841029,-500.0,0.00029897,2]
[329284826,1718215841041,-519.16698308,0.00029897,2]
[329284827,1718215841053,-510.03204715,0.00029897,2]
[329284828,1718215841064,-476.47255224,0.00029897,2]
[329284829,1718215841077,-83578.2412,0.00029898,2]
[329284831,1718215841096,-175.92510571,0.00029898,2]
[329284832,1718215841110,-166.76268505,0.00029898,2]
[329284833,1718215841122,-195.17074105,0.00029898,2]
[329284834,1718215841134,-184.29208948,0.00029898,2]
[329284835,1718215841145,-190.75780564,0.00029898,2]
[329284836,1718215841161,-5789.82851102,0.00029898,2]
[329284837,1718215841177,-5789.82851099,0.00029898,2]
[329284838,1718215841195,-5789.82851099,0.00029898,2]
[329284839,1718215841206,-190.75780564,0.00029899,2]
[329284840,1718215841218,-5789.82851099,0.00029899,2]
[329284841,1718215841230,-5789.82851099,0.00029899,2]
[329284842,1718215841241,-5789.82851099,0.00029899,2]
[329284843,1718215841252,-175.92510569,0.00029899,2]
[329284844,1718215841264,-166.76268505,0.00029899,2]
[329284845,1718215841275,-190.75780564,0.00029899,2]
[329284846,1718215841286,-5789.82851099,0.00029899,2]
[329284847,1718215841297,-5789.82851099,0.00029899,2]
[329284848,1718215841309,-159.0,0.00029899,5]
[329284849,1718215841320,-5789.82851099,0.00029899,2]
[329284850,1718215841331,-190.75780564,0.000299,2]
[329284851,1718215841341,-5789.82851099,0.000299,2]
[329284852,1718215841352,-3012.8224,0.000299,2]
[329284853,1718215841363,-162.659,0.000299,2]
[329284854,1718215841373,-500.0,0.000299,2]
[329284855,1718215841384,-214.1415,0.000299,2]
[329284856,1718215841394,-72155.0298,0.000299,2]
[329284857,1718215841404,-5789.82851099,0.000299,2]
[329284858,1718215841415,-175.92510569,0.000299,2]
[329284859,1718215841426,-166.76268505,0.000299,2]
[329284860,1718215841436,-195.17074105,0.000299,2]
[329284861,1718215841447,-2554.52847289,0.000299,15]
[329284862,1718215841457,-184.29208948,0.000299,2]
[329284863,1718215841468,-190.75780564,0.000299,2]
[329284864,1718215841479,-9107.15496963,0.000299,15]
[329284865,1718215841490,-4892.73363698,0.000299,2]
[329284866,1718215841501,-370.61885988,0.000299,2]
[329284867,1718215841512,-5789.82851099,0.000299,2]
[329284868,1718215841522,-1853.69181964,0.000299,2]
[329284869,1718215841532,-1755.29912507,0.000299,2]
[329284870,1718215841543,-500.0,0.00029948,2]
[329284871,1718215841553,-6766.30496704,0.00029948,2]
[329284872,1718215841703,-2496.87503296,0.00029948,2]
[329284873,1718215841713,-1510.37,0.00029958,2]
[329284874,1718215841724,-154.28305795,0.00029989,2]
[329284875,1718215841736,-542.8956905,0.00029996,2]
[329284876,1718215841746,-500.0,0.00029997,2]
[329284877,1718215841757,-500.0,0.00029997,2]
[329284878,1718215841768,-500.0,0.00029997,2]
[329284879,1718215841779,-371.71860872,0.00029997,2]
[329284880,1718215841790,-285.24365879,0.00029998,2]
[329284881,1718215841800,-390.26047404,0.00029998,2]
[329284882,1718215841813,-1000.0,0.00029998,2]
[329284883,1718215841824,-155.0,0.00029998,2]
[329284884,1718215841835,-1427.04327615,0.00029998,2]
[329284885,1718215841846,-589.79517306,0.00029998,2]
[329284886,1718215841859,-3386.8306128,0.00029998,2]
[329284887,1718215841872,-786.3940397,0.00029998,2]
[329284888,1718215841883,-2231.44085212,0.00029998,7]
[329284889,1718215841894,-1791.56222238,0.00029998,2]
[329284890,1718215841907,-3019.17951546,0.00029998,2]
[329284891,1718215841918,-180.33960977,0.00029998,2]
[329284892,1718215841928,-161.59800779,0.00029998,2]
[329284893,1718215841939,-490.61954782,0.00029998,2]
[329284894,1718215841950,-719.4340817,0.00029998,2]
[329284895,1718215841964,-3100.7560639,0.00029998,2]
[329284896,1718215841974,-156.70708804,0.00029998,2]
[329284897,1718215841985,-2421.31748721,0.00029998,2]
[329284898,1718215842009,-389.05,0.00029527,2]
[329284899,1718215842020,-897.29001778,0.00029998,2]
[329284900,1718215842033,-1981.57791662,0.00029998,2]
[329284901,1718215842044,-126.12050274,0.00029998,2]
[329284902,1718215842078,-389.05,0.0002989,2]
[329284903,1718215842089,-292.28,0.00029998,2]
[329284904,1718215842104,-1101.00994531,0.00029998,2]
[329284905,1718215842117,-102104.87945437,0.00029998,2]
[329284933,1718215849353,-500.0,0.00024328,2]
[329284937,1718215849365,-500.0,0.00024328,2]
[329284940,1718215849375,-714.70400096,0.00029,2]
[329284944,1718215849386,-157.39,0.00029988,10]
[329284950,1718215849397,-4925.51,0.00029995,2]
[329284955,1718215849407,-62102.39599911,0.00029998,2]
[329284975,1718215849524,-268.45720524,0.00029998,2]
[329284976,1718215849538,-290.73298868,0.00029998,2]
[329284977,1718215849551,-4100.10870284,0.00029998,2]
[329284978,1718215849564,-5681.2294931,0.00029998,2]
[329284979,1718215849578,-900.91308946,0.00029998,2]
[329284981,1718215849590,-5097.0478905,0.00029998,2]
[329284983,1718215849603,-16270.90376887,0.00029998,2]
[329284985,1718215849617,-23950.72874,0.00029998,2]
[329284990,1718215849656,-690.0,0.00029998,2]
[329284992,1718215849668,-6334.851414,0.00029998,2]
[329284994,1718215849681,-5011.6,0.00029998,2]
[329285007,1718215849810,-49531.48041696,0.00029998,2]
[329285010,1718215849823,-93346.37551934,0.00029998,2]
[329285012,1718215849835,-69290.55529457,0.00029998,2]
[329285014,1718215849849,-13904.70611044,0.00029998,2]
[329285016,1718215849862,-33726.00650358,0.00029998,2]
[329285018,1718215849875,-39567.98065039,0.00029998,2]
[329285020,1718215849888,-75271.8764812,0.00029998,2]
[329285022,1718215849902,-866.34776016,0.00029998,3]
[329285024,1718215849913,-155.0,0.00029998,2]
[329285026,1718215849924,-1249.34786736,0.00029998,2]
[329285028,1718215849934,-2485.09344287,0.00029998,2]
[329285030,1718215849945,-23852.14157762,0.00029998,5]
[329285032,1718215849955,-8169.77263668,0.00029998,2]
[329285034,1718215849966,-621.20003601,0.00029998,2]
[329285036,1718215849980,-155.0,0.00029998,2]
[329285038,1718215849991,-286.06239349,0.00029998,2]
[329285040,1718215850002,-545.84909757,0.00029998,2]
[329285042,1718215850014,-290.01726242,0.00029998,2]
[329285044,1718215850024,-1277.7583517,0.00029998,2]
[329285046,1718215850036,-659.07845299,0.00029998,2]
[329285048,1718215850047,-326.33400151,0.00029998,2]
[329285050,1718215850058,-209.92442319,0.00029998,2]
[329285052,1718215850068,-3530.01953638,0.00029998,2]
[329285054,1718215850082,-689.62503831,0.00029998,2]
[329285056,1718215850093,-155.11733963,0.00029998,2]
[329285058,1718215850104,-2822.74124506,0.00029998,2]
[329285060,1718215850117,-155.0,0.00029998,2]
[329285062,1718215850127,-156.67264725,0.00029998,2]
[329285064,1718215850138,-443.29297293,0.00029999,2]
[329285065,1718215850149,-456.70272482,0.00029999,2]
[329285067,1718215850159,-500.0,0.00029999,2]
[329285069,1718215850171,-215.12846535,0.00029999,2]
[329285071,1718215850183,-217.40519542,0.00029999,2]
[329285072,1718215850202,-500.0,0.00029999,2]
[329285074,1718215850213,-500.0,0.00029999,2]
[329285076,1718215850223,-499.90010947,0.00029999,2]
[329285077,1718215850233,-500.0,0.00029999,2]
[329285078,1718215850243,-500.0,0.00029999,2]
[329285080,1718215850254,-500.0,0.00029999,2]
[329285082,1718215850265,-500.0,0.00029999,2]
[329285084,1718215850276,-393.93415921,0.00029999,2]
[329285086,1718215850288,-500.0,0.00029999,2]
[329285088,1718215850298,-500.0,0.00029999,2]
[329285090,1718215850308,-500.0,0.00029999,2]
[329285092,1718215850319,-500.0,0.00029999,2]
[329285094,1718215850328,-500.0,0.00029999,2]
[329285096,1718215850338,-500.0,0.00029999,2]
[329285098,1718215850348,-500.0,0.00029999,2]
[329285100,1718215850360,-500.0,0.00029999,2]
[329285102,1718215850372,-500.0,0.00029999,2]
[329285104,1718215850386,-500.0,0.00029999,2]
[329285106,1718215850399,-530.6564147,0.00029999,2]
[329285108,1718215850409,-3000.0,0.00029999,2]
[329285110,1718215850420,-165.0,0.00029999,5]
[329285111,1718215850430,-151.0,0.0003,2]
[329285113,1718215850442,-179.04739427,0.0003,5]
[329285115,1718215850452,-29655.95075495,0.0003,13]
[329285117,1718215850466,-21677.02586756,0.0003,13]
[329285119,1718215850480,-696.14644,0.0003,13]
[329285122,1718215850497,-8295.40586116,0.0003,13]
[329285124,1718215850514,-1268.42011833,0.0003,13]
[329285127,1718215850528,-17776.31747716,0.0003,13]
[329285128,1718215850542,-15990.39542271,0.0003,13]
[329285131,1718215850696,-101853.44239502,0.0003,13]
[329285132,1718215850710,-10995.44217409,0.0003,13]
[329285133,1718215850722,-4907.34421912,0.0003,13]
[329285134,1718215850734,-16381.37413941,0.0003,13]
[329285135,1718215850747,-1172.76967418,0.0003,13]
[329285136,1718215850769,-496.413595,0.0003,13]
[329285137,1718215850782,-25520.97953461,0.0003,13]
[329285138,1718215850793,-311989.07443127,0.0003,13]
[329285139,1718215850805,-24083.45514909,0.0003,13]
[329285140,1718215850818,-24523.77614086,0.0003,13]
[329285141,1718215850831,-14147.25063821,0.0003,13]
[329285142,1718215850844,-408499.9055479,0.0003,13]
[329285143,1718215850859,-690.90021,0.0003,13]
[329285144,1718215850872,-372.75798468,0.0003,13]
[329285145,1718215850885,-6890.99999999,0.0003,13]
[329285146,1718215850898,-141936.18833148,0.0003,13]
[329285147,1718215850915,-293.7897066,0.0003,13]
[329285148,1718215851044,-36873.930204,0.0003,13]
[329285149,1718215851061,-3615.86608181,0.0003,13]
[329285150,1718215851073,-7855.52070519,0.0003,13]
[329285151,1718215851112,-155.0,0.00029998,2]